[Event "DVM U14 2019"]
[Site "Magedburg"]
[Date "2019.12.29"]
[Round "5"]
[White "Morgenstern, Tobias"]
[Black "Kogan, Gabriel"]
[Result "1-0"]
[ECO "C64"]
[WhiteElo "1943"]
[BlackElo "1527"]
[Annotator "NA"]
[PlyCount "77"]
[EventDate "2019.12.27"]
[EventType "team-tourn"]
[EventRounds "7"]
[EventCountry "GER"]
[SourceTitle "playchess.com"]
[Source "ChessBase"]
[SourceQuality "1"]
[WhiteTeam "Schachzwerge Magdeburg"]
[BlackTeam "SG Porz"]
[WhiteTeamCountry "GER"]
[BlackTeamCountry "GER"]
[TimeControl "40/5400+30:1800+30"]

1. e4 e5 2. Nf3 Nc6 3. Bb5 Bc5 4. c3 Nf6 5. d3 d6 6. Nbd2 O-O 7. O-O a6 8. Ba4 Ba7 9. h3 Ne7 10. Re1 Ng6 11. Nf1 b5 12. Bc2 Re8 13. Ng3 h6 14. Nh2 Bd7 15. Qf3 Nh4 16. Qe2 Qc8 17. Nh5 Qd8 18. Nxf6+ Qxf6 19. Be3 Qg6 20. g4 Qf6 21. Bxa7 Rxa7 22. Qe3 Raa8 23. Qg3 Ng6 24. Nf1 Nf4 25. Ne3 h5 26. Ng2 hxg4 27. hxg4 Qg5 28. f3 Nxg2 29. Kxg2 Re6 30. Qf2 Rf6 31. Qe3 Rf4 32. Re2 Rf8 33. Bb3 g6 34. Rh1 Bxg4 35. fxg4 Qxg4+ 36. Kh2 Qh5+ 37. Kg1 Qg5+ 38. Rg2 Rf1+ 39. Kxf1 {normal} 1-0

[Event "DVM U14 2019"]
[Site "Magedburg"]
[Date "2019.12.29"]
[Round "5"]
[White "Schubert, Nikita"]
[Black "Weihrauch, Jakob"]
[Result "1/2-1/2"]
[ECO "A40"]
[WhiteElo "1914"]
[BlackElo "2169"]
[Annotator "ChessBase"]
[PlyCount "65"]
[EventDate "2019.12.27"]
[EventType "team-tourn"]
[EventRounds "7"]
[EventCountry "GER"]
[SourceTitle "playchess.com"]
[Source "ChessBase"]
[SourceQuality "1"]
[WhiteTeam "ESV Gera"]
[BlackTeam "Hamburger SK"]
[WhiteTeamCountry "GER"]
[BlackTeamCountry "GER"]
[TimeControl "40/5400+30:1800+30"]

1. d4 {[%emt 0:00:00]} Nf6 {[%emt 0:00:00]} 2. c4 {[%emt 0:00:00]} e6 {[%emt 0:00:05]} 3. g3 {[%emt 0:00:00]} d5 {[%emt 0:01:53]} 4. Nf3 {[%emt 0:00:19]} b6 {[%emt 0:04:11]} 5. Bg2 {[%emt 0:00:34]} Bb7 {[%emt 0:00:06]} 6. Ne5 {[%emt 0:01:37]} Be7 {[%emt 0:03:04]} 7. O-O {[%emt 0:01:02]} O-O {[%emt 0:00:10]} 8. Nc3 {[%emt 0:02:58]} Ne4 {[%emt 0:08:15]} 9. cxd5 {[%emt 0:07:03]} exd5 {[%emt 0:00:52]} 10. Qc2 {[%emt 0:09:55]} Nxc3 {[%emt 0:02:38]} 11. bxc3 {[%emt 0:03:07]} Qc8 {[%emt 0:15:22]} 12. Qb3 {[%emt 0:15:01]} Qe6 {[%emt 0:05:01]} 13. Nd3 {[%emt 0:05:09]} Bd6 {[%emt 0:04:51]} 14. Bf4 {[%emt 0:06:00]} Nd7 {[%emt 0:02:33]} 15. Bxd6 {[%emt 0:09:31]} Qxd6 {[%emt 0:01:07]} 16. Qc2 {[%emt 0:06:38]} c5 {[%emt 0:07:33]} 17. dxc5 {[%emt 0:07:26]} Nxc5 18. Rad1 {[%emt 0:07:17]} Ne4 {[%emt 0:04:07]} 19. Nf4 {[%emt 0:02:57]} Qc5 {[%emt 0:03:13]} 20. Nxd5 {[%emt 0:05:14]} Bxd5 {[%emt 0:01:13]} 21. Rxd5 {[%emt 0:00:10]} Qxd5 {[%emt 0:00:49]} 22. Bxe4 {[%emt 0:00:07]} Qc4 {[%emt 0:00:16]} 23. Bxa8 {[%emt 0:00:21]} Rxa8 {[%emt 0:00:05]} 24. Rd1 {[%emt 0:01:29]} Rc8 {[%emt 0:00:51]} 25. Rd3 {[%emt 0:01:51]} g6 {[%emt 0:02:06]} 26. Qd2 {[%emt 0:01:05]} Kg7 {[%emt 0:02:59]} 27. h4 {[%emt 0:01:44]} h5 {[%emt 0:00:27]} 28. Rd7 {[%emt 0:03:41]} a5 {[%emt 0:01:04]} 29. Rd3 {[%emt 0:00:31]} b5 {[%emt 0:07:11]} 30. Qb2 {[%emt 0:00:58]} Rc5 {[%emt 0:02:06]} 31. Qd2 {[%emt 0:00:47]} Rc8 {[%emt 0:01:13]} 32. Qb2 {[%emt 0:00:46]} Rc5 {[%emt 0:00:05]} 33. Qd2 {[%emt 0:00:37] normal} 1/2-1/2

[Event "DVM U14 2019"]
[Site "Magedburg"]
[Date "2019.12.29"]
[Round "5"]
[White "Zeuner, Ole"]
[Black "Gallasch, Jonas"]
[Result "1/2-1/2"]
[ECO "B13"]
[WhiteElo "1794"]
[BlackElo "2107"]
[Annotator "ChessBase"]
[PlyCount "81"]
[EventDate "2019.12.27"]
[EventType "team-tourn"]
[EventRounds "7"]
[EventCountry "GER"]
[SourceTitle "playchess.com"]
[Source "ChessBase"]
[SourceQuality "1"]
[WhiteTeam "Schachzwerge Magdeburg"]
[BlackTeam "SG Porz"]
[WhiteTeamCountry "GER"]
[BlackTeamCountry "GER"]
[TimeControl "40/5400+30:1800+30"]

1. e4 {[%emt 0:00:00]} c6 {[%emt 0:00:00]} 2. d4 {[%emt 0:00:00]} d5 {[%emt 0:00:00]} 3. exd5 {[%emt 0:00:00]} cxd5 {[%emt 0:00:00]} 4. Bf4 {[%emt 0:00:00]} Nc6 {[%emt 0:00:43]} 5. c3 {[%emt 0:00:03]} Nf6 {[%emt 0:03:46]} 6. Nd2 {[%emt 0:00:23]} Bf5 {[%emt 0:03:04]} 7. Ngf3 {[%emt 0:00:21]} a6 {[%emt 0:02:51]} 8. Qb3 {[%emt 0:05:49]} Na5 {[%emt 0:01:58]} 9. Qd1 {[%emt 0:04:01]} e6 {[%emt 0:02:20]} 10. Ne5 {[%emt 0:05:03]} Be7 {[%emt 0:23:02]} 11. Ndf3 {[%emt 0:06:51]} O-O {[%emt 0:02:30]} 12. Bd3 {[%emt 0:03:43]} Bxd3 {[%emt 0:04:31]} 13. Qxd3 {[%emt 0:01:33]} Qc8 {[%emt 0:00:13]} 14. O-O {[%emt 0:01:31]} b5 {[%emt 0:02:27]} 15. a4 {[%emt 0:05:48]} b4 {[%emt 0:04:47]} 16. cxb4 {[%emt 0:02:16]} Bxb4 {[%emt 0:03:24]} 17. Rfc1 {[%emt 0:11:14]} Qb7 {[%emt 0:00:40]} 18. Ng5 {[%emt 0:07:17]} h6 {[%emt 0:18:11]} 19. Ngxf7 {[%emt 0:03:28]} Rxf7 {[%emt 0:00:07]} 20. Nxf7 {[%emt 0:00:11]} Qxf7 {[%emt 0:00:03]} 21. Rc7 {[%emt 0:00:17]} Qh5 {[%emt 0:04:05]} 22. Rac1 {[%emt 0:14:58]} Qf5 {[%emt 0:03:41]} 23. Qxf5 {[%emt 0:03:16]} exf5 {[%emt 0:00:06]} 24. Be5 {[%emt 0:01:42]} Rf8 {[%emt 0:06:14]} 25. Ra7 {[%emt 0:05:15]} Nc4 {[%emt 0:04:57]} 26. b3 {[%emt 0:03:02]} Nxe5 {[%emt 0:01:25]} 27. dxe5 {[%emt 0:00:02]} Ne4 {[%emt 0:01:24]} 28. Rcc7 {[%emt 0:01:36]} Re8 {[%emt 0:00:09]} 29. Rxg7+ {[%emt 0:01:21]} Kh8 {[%emt 0:00:04]} 30. Rh7+ {[%emt 0:01:54]} Kg8 {[%emt 0:00:05]} 31. Rag7+ {[%emt 0:01:18]} Kf8 {[%emt 0:00:06]} 32. Rc7 {[%emt 0:04:28]} Kg8 {[%emt 0:00:22]} 33. Rxh6 {[%emt 0:00:43]} a5 {[%emt 0:01:17]} 34. f4 {[%emt 0:03:33]} d4 {[%emt 0:00:54]} 35. Rg6+ {[%emt 0:00:27]} Kh8 {[%emt 0:01:40]} 36. Rh6+ {[%emt 0:00:01]} Kg8 {[%emt 0:00:07]} 37. Rg6+ {[%emt 0:01:27]} Kh8 {[%emt 0:00:05]} 38. Kf1 {[%emt 0:03:12]} d3 {[%emt 0:01:40]} 39. Rd7 {[%emt 0:00:40]} Nc5 {[%emt 0:03:20]} 40. Rh6+ {[%emt 0:00:14]} Kg8 {[%emt 0:00:05]} 41. Rg6+ {[%emt 0:30:06] normal} 1/2-1/2

[Event "DVM U14 2019"]
[Site "Magedburg"]
[Date "2019.12.29"]
[Round "5"]
[White "Huo, Da"]
[Black "Gerber, Anna Sophie"]
[Result "1-0"]
[ECO "B40"]
[WhiteElo "1771"]
[BlackElo "1513"]
[Annotator "NA"]
[PlyCount "97"]
[EventDate "2019.12.27"]
[EventType "team-tourn"]
[EventRounds "7"]
[EventCountry "GER"]
[SourceTitle "playchess.com"]
[Source "ChessBase"]
[SourceQuality "1"]
[WhiteTeam "Hamburger SK"]
[BlackTeam "ESV Gera"]
[WhiteTeamCountry "GER"]
[BlackTeamCountry "GER"]
[TimeControl "40/5400+30:1800+30"]

1. e4 {[%emt 0:00:00]} c5 {[%emt 0:00:00]} 2. Nf3 {[%emt 0:00:00]} e6 {[%emt 0:00:00]} 3. d4 {[%emt 0:00:00]} cxd4 {[%emt 0:00:09]} 4. Nxd4 {[%emt 0:00:04]} Nf6 {[%emt 0:00:21]} 5. Nc3 {[%emt 0:00:23]} Nc6 {[%emt 0:00:36]} 6. Be3 {[%emt 0:01:57]} Bb4 {[%emt 0:00:53]} 7. Bd3 {[%emt 0:06:43]} d5 {[%emt 0:04:36]} 8. Nxc6 {[%emt 0:06:21]} bxc6 {[%emt 0:00:36]} 9. exd5 {[%emt 0:17:22]} exd5 {[%emt 0:02:21]} 10. Bd2 {[%emt 0:02:26]} Qe7+ {[%emt 0:04:50]} 11. Qe2 {[%emt 0:02:03]} Be6 {[%emt 0:01:28]} 12. O-O {[%emt 0:00:57]} O-O {[%emt 0:01:15]} 13. a3 {[%emt 0:00:47]} Bd6 {[%emt 0:02:36]} 14. f4 {[%emt 0:01:59]} Qc7 {[%emt 0:08:35]} 15. h3 {[%emt 0:01:21]} Rfe8 {[%emt 0:05:29]} 16. Qf3 {[%emt 0:00:50]} Rad8 {[%emt 0:06:10]} 17. Kh1 {[%emt 0:07:25]} Bc8 {[%emt 0:04:27]} 18. b4 {[%emt 0:06:51]} Bb7 {[%emt 0:06:38]} 19. Na4 {[%emt 0:03:56]} Ne4 {[%emt 0:09:02]} 20. Bxe4 {[%emt 0:05:36]} dxe4 {[%emt 0:08:36]} 21. Qe3 {[%emt 0:01:34]} Ba6 {[%emt 0:05:52]} 22. Rfe1 {[%emt 0:01:39]} f5 {[%emt 0:04:08]} 23. Rac1 {[%emt 0:02:50]} Bc8 {[%emt 0:10:02]} 24. c4 {[%emt 0:02:07]} Qf7 {[%emt 0:01:37]} 25. Nb2 {[%emt 0:04:55]} Be6 {[%emt 0:02:38]} 26. Bc3 {[%emt 0:07:26]} Rd7 {[%emt 0:02:48]} 27. c5 {[%emt 0:05:47]} Be7 {[%emt 0:00:17]} 28. Be5 {[%emt 0:01:17]} Bf6 {[%emt 0:00:37]} 29. Bxf6 {[%emt 0:01:21]} Qxf6 {[%emt 0:00:03]} 30. Qc3 {[%emt 0:02:36]} Qxc3 {[%emt 0:00:34]} 31. Rxc3 {[%emt 0:00:02]} Rd2 {[%emt 0:00:24]} 32. Nc4 {[%emt 0:00:49]} Bxc4 {[%emt 0:00:49]} 33. Rxc4 {[%emt 0:00:01]} Ra2 {[%emt 0:01:08]} 34. g4 {[%emt 0:03:10]} Rxa3 {[%emt 0:01:11]} 35. gxf5 {[%emt 0:00:15]} Rxh3+ {[%emt 0:00:24]} 36. Kg2 {[%emt 0:00:08]} Rh5 {[%emt 0:00:18]} 37. Rcxe4 {[%emt 0:01:36]} Rxe4 {[%emt 0:00:13]} 38. Rxe4 {[%emt 0:00:01]} Rxf5 {[%emt 0:00:13]} 39. Kg3 {[%emt 0:00:35]} Kf7 {[%emt 0:00:45]} 40. Rd4 {[%emt 0:00:14]} Ke8 {[%emt 0:03:17]} 41. Rd6 {[%emt 0:31:58]} Rf7 {[%emt 0:32:42]} 42. Rxc6 {[%emt 0:00:32]} Rb7 {[%emt 0:00:37]} 43. Ra6 {[%emt 0:01:35]} Rxb4 {[%emt 0:00:39]} 44. Rxa7 {[%emt 0:00:06]} Rc4 {[%emt 0:00:00]} 45. Rxg7 {[%emt 0:00:00]} Rxc5 {[%emt 0:00:00]} 46. Rxh7 {[%emt 0:00:00]} Rf5 {[%emt 0:00:00]} 47. Kg4 {[%emt 0:00:00]} Rf7 {[%emt 0:00:00]} 48. Rxf7 {[%emt 0:00:00]} Kxf7 {[%emt 0:00:00]} 49. Kf5 {[%emt 0:00:00] normal} 1-0

[Event "DVM U14 2019"]
[Site "Magedburg"]
[Date "2019.12.29"]
[Round "5"]
[White "Sohr, Jim"]
[Black "Böhm, Florian"]
[Result "1-0"]
[ECO "A96"]
[WhiteElo "1730"]
[BlackElo "1445"]
[Annotator "NA"]
[PlyCount "67"]
[EventDate "2019.12.27"]
[EventType "team-tourn"]
[EventRounds "7"]
[EventCountry "GER"]
[SourceTitle "playchess.com"]
[Source "ChessBase"]
[SourceQuality "1"]
[WhiteTeam "SV Königsjäger Süd-West"]
[BlackTeam "1. SC Anhalt"]
[WhiteTeamCountry "GER"]
[TimeControl "40/5400+30:1800+30"]

1. d4 {[%emt 0:00:00]} f5 {[%emt 0:00:00]} 2. c4 {[%emt 0:00:00]} e6 {[%emt 0:00:07]} 3. Nf3 {[%emt 0:00:00]} Nf6 {[%emt 0:00:32]} 4. g3 {[%emt 0:00:24]} Be7 {[%emt 0:00:24]} 5. Bg2 {[%emt 0:01:00]} d6 {[%emt 0:01:35]} 6. O-O {[%emt 0:04:34]} O-O {[%emt 0:01:23]} 7. Nc3 {[%emt 0:05:53]} a6 {[%emt 0:04:42]} 8. Qc2 {[%emt 0:04:25]} Nbd7 {[%emt 0:01:53]} 9. b3 {[%emt 0:08:59]} Nh5 {[%emt 0:07:01]} 10. e4 {[%emt 0:06:21]} fxe4 {[%emt 0:09:58]} 11. Nxe4 {[%emt 0:02:04]} Nhf6 {[%emt 0:01:59]} 12. Neg5 {[%emt 0:05:45]} Nb6 {[%emt 0:02:10]} 13. Re1 {[%emt 0:02:35]} h6 {[%emt 0:01:23]} 14. Nxe6 {[%emt 0:02:05]} Bxe6 {[%emt 0:00:07]} 15. Rxe6 {[%emt 0:00:08]} d5 {[%emt 0:01:33]} 16. cxd5 {[%emt 0:07:19]} Nbxd5 {[%emt 0:01:12]} 17. Bb2 {[%emt 0:04:53]} Bd6 {[%emt 0:02:23]} 18. a3 {[%emt 0:03:50]} Qd7 {[%emt 0:00:52]} 19. Rae1 {[%emt 0:01:06]} Rae8 {[%emt 0:01:21]} 20. Rxe8 {[%emt 0:02:10]} Rxe8 {[%emt 0:01:27]} 21. Rxe8+ {[%emt 0:01:32]} Qxe8 {[%emt 0:01:17]} 22. Ne5 {[%emt 0:01:18]} c6 {[%emt 0:02:07]} 23. Qf5 {[%emt 0:06:46]} Bxe5 {[%emt 0:02:05]} 24. dxe5 {[%emt 0:03:47]} Qd7 {[%emt 0:00:35]} 25. Qxd7 {[%emt 0:02:25]} Nxd7 {[%emt 0:00:10]} 26. Bh3 {[%emt 0:03:12]} Nf8 {[%emt 0:02:15]} 27. Bc8 {[%emt 0:00:50]} b5 {[%emt 0:00:54]} 28. Bxa6 {[%emt 0:02:42]} b4 {[%emt 0:01:12]} 29. Bb7 {[%emt 0:02:08]} Ng6 {[%emt 0:01:35]} 30. Bxc6 {[%emt 0:01:54]} bxa3 {[%emt 0:00:16]} 31. Bxd5+ {[%emt 0:00:24]} Kh8 {[%emt 0:00:35]} 32. Bxa3 {[%emt 0:00:09]} Nxe5 {[%emt 0:00:05]} 33. f4 {[%emt 0:01:36]} Nd7 {[%emt 0:00:30]} 34. Bc6 {[%emt 0:01:08] normal} 1-0

[Event "DVM U14 2019"]
[Site "Magedburg"]
[Date "2019.12.29"]
[Round "5"]
[White "Sabirov, Rafael"]
[Black "Stockmann, Till"]
[Result "0-1"]
[ECO "B43"]
[WhiteElo "1668"]
[BlackElo "1894"]
[Annotator "NA"]
[PlyCount "96"]
[EventDate "2019.12.27"]
[EventType "team-tourn"]
[EventRounds "7"]
[EventCountry "GER"]
[SourceTitle "playchess.com"]
[Source "ChessBase"]
[SourceQuality "1"]
[WhiteTeam "SG Porz"]
[BlackTeam "Schachzwerge Magdeburg"]
[WhiteTeamCountry "GER"]
[BlackTeamCountry "GER"]
[TimeControl "40/5400+30:1800+30"]

1. e4 {[%emt 0:00:00]} c5 {[%emt 0:00:00]} 2. Nf3 {[%emt 0:00:00]} e6 {[%emt 0:00:00]} 3. d4 {[%emt 0:00:00]} cxd4 {[%emt 0:00:00]} 4. Nxd4 {[%emt 0:00:00]} a6 {[%emt 0:00:14]} 5. Nc3 {[%emt 0:00:00]} Qc7 {[%emt 0:01:10]} 6. Bd3 {[%emt 0:00:08] unterminated} Nf6 {[%emt 0:00:53]} 7. f4 {[%emt 0:00:19]} d6 {[%emt 0:00:51] unterminated} 8. Nf3 {[%emt 0:10:47] unterminated} Nbd7 {[%emt 0:05:40]} 9. Qe2 {[%emt 0:02:58] unterminated} b5 $11 {[%emt 0:06:47]} 10. a3 {[%emt 0:01:51]} Bb7 {[%emt 0:01:00]} 11. O-O {[%emt 0:02:54]} Be7 {[%emt 0:03:31]} 12. Bd2 {[%emt 0:05:08]} O-O {[%emt 0:03:23]} 13. Kh1 {[%emt 0:03:18]} Nc5 {[%emt 0:07:06]} 14. Rac1 {[%emt 0:03:48]} Rfd8 {[%emt 0:02:50]} 15. b4 {[%emt 0:19:53]} Ncd7 {[%emt 0:04:52]} 16. Nd1 {[%emt 0:02:43]} d5 {[%emt 0:03:50]} 17. exd5 {[%emt 0:11:56]} Nxd5 {[%emt 0:02:47]} 18. f5 {[%emt 0:10:11]} exf5 {[%emt 0:06:23]} 19. c4 {[%emt 0:04:48]} bxc4 {[%emt 0:03:38]} 20. Bxc4 {[%emt 0:01:34]} Qd6 {[%emt 0:01:36]} 21. Ne3 {[%emt 0:02:25]} Nxe3 {[%emt 0:02:42]} 22. Bxe3 {[%emt 0:01:37]} Bf6 {[%emt 0:04:45]} 23. Ng5 {[%emt 0:03:16]} Bxg5 {[%emt 0:09:53]} 24. Bxg5 {[%emt 0:00:26]} Re8 {[%emt 0:00:58]} 25. Qa2 {[%emt 0:00:41]} Qg6 {[%emt 0:00:39]} 26. Bf4 {[%emt 0:02:37]} Rac8 {[%emt 0:04:31]} 27. Bb3 {[%emt 0:03:01]} Nf6 {[%emt 0:02:00]} 28. Rxc8 {[%emt 0:02:59]} Rxc8 {[%emt 0:00:47]} 29. Rd1 {[%emt 0:01:24]} Bc6 {[%emt 0:05:08]} 30. Be6 Re8 {[%emt 0:04:18]} 31. Bc4 {[%emt 0:03:23]} Ne4 {[%emt 0:00:20]} 32. Rf1 {[%emt 0:01:15]} Bb7 {[%emt 0:06:33]} 33. Qc2 {[%emt 0:00:09]} Rc8 {[%emt 0:00:30]} 34. Qe2 {[%emt 0:00:49]} Nc3 {[%emt 0:02:30]} 35. Qd2 {[%emt 0:00:14]} Bxg2+ {[%emt 0:00:48]} 36. Qxg2 {[%emt 0:00:04]} Qxg2+ {[%emt 0:00:07]} 37. Kxg2 {[%emt 0:00:03]} Rxc4 {[%emt 0:00:11]} 38. Bg3 {[%emt 0:01:22]} Nd5 {[%emt 0:01:07]} 39. Re1 {[%emt 0:00:26]} f6 {[%emt 0:00:47]} 40. Bd6 {[%emt 0:00:46]} Rc2+ {[%emt 0:00:44]} 41. Kf3 {[%emt 0:30:26]} Ra2 {[%emt 0:30:17]} 42. b5 {[%emt 0:00:00]} axb5 {[%emt 0:00:00]} 43. Rb1 {[%emt 0:00:00]} Nc3 {[%emt 0:00:00]} 44. Rb3 {[%emt 0:00:00]} Ne4 {[%emt 0:00:00]} 45. Bb4 {[%emt 0:00:00]} Rxh2 {[%emt 0:00:00]} 46. Kf4 {[%emt 0:00:00]} Rh4+ {[%emt 0:00:00]} 47. Kxf5 {[%emt 0:00:00] normal} Kf7 {[%emt 0:00:00]} 48. Re3 {[%emt 0:00:00]} g6# {normal} 0-1

[Event "DVM U14 2019"]
[Site "Magedburg"]
[Date "2019.12.29"]
[Round "5"]
[White "Laudwein, Jakob"]
[Black "Heutling, Elina"]
[Result "0-1"]
[ECO "D71"]
[WhiteElo "1612"]
[BlackElo "1796"]
[Annotator "NA"]
[PlyCount "74"]
[EventDate "2019.12.27"]
[EventType "team-tourn"]
[EventRounds "7"]
[EventCountry "GER"]
[SourceTitle "playchess.com"]
[Source "ChessBase"]
[SourceQuality "1"]
[WhiteTeam "SG Porz"]
[BlackTeam "Schachzwerge Magdeburg"]
[BlackTeamCountry "GER"]
[TimeControl "40/5400+30:1800+30"]

1. d4 {[%emt 0:00:00]} Nf6 {[%emt 0:00:00]} 2. c4 {[%emt 0:00:00]} g6 {[%emt 0:00:00]} 3. g3 {[%emt 0:00:00]} Bg7 {[%emt 0:00:00]} 4. Bg2 {[%emt 0:00:13]} O-O {[%emt 0:00:23]} 5. Nc3 {[%emt 0:00:19]} d6 {[%emt 0:00:20]} 6. Nf3 {[%emt 0:00:20]} c6 {[%emt 0:00:25]} 7. e4 {[%emt 0:00:51]} Qb6 {[%emt 0:02:47]} 8. O-O {[%emt 0:16:44]} Bg4 {[%emt 0:00:55]} 9. Rb1 {[%emt 0:03:33]} a5 {[%emt 0:05:46]} 10. Be3 {[%emt 0:06:22]} Qa6 {[%emt 0:10:18]} 11. Qd3 {[%emt 0:17:19]} Be6 {[%emt 0:09:05]} 12. Nd2 {[%emt 0:12:02]} d5 {[%emt 0:03:32]} 13. b3 {[%emt 0:06:09]} Rd8 {[%emt 0:03:22]} 14. Na4 {[%emt 0:06:37]} b6 {[%emt 0:07:59]} 15. Qc2 {[%emt 0:02:32]} Nbd7 {[%emt 0:04:19]} 16. c5 {[%emt 0:06:02]} b5 {[%emt 0:03:52]} 17. Nb2 {[%emt 0:00:36]} dxe4 {[%emt 0:02:50]} 18. Nxe4 {[%emt 0:01:29]} Bf5 {[%emt 0:02:15]} 19. f3 {[%emt 0:01:17]} Nd5 {[%emt 0:00:55]} 20. Qd2 {[%emt 0:02:09]} Bxe4 {[%emt 0:06:49]} 21. fxe4 {[%emt 0:00:23]} Nxe3 {[%emt 0:00:13]} 22. Qxe3 {[%emt 0:00:11]} Nxc5 {[%emt 0:00:54]} 23. Qf3 {[%emt 0:03:58]} Bxd4+ {[%emt 0:01:17]} 24. Kh1 {[%emt 0:00:09]} f6 {[%emt 0:01:12]} 25. Rfd1 {[%emt 0:02:48]} Rd6 {[%emt 0:04:13]} 26. Nd3 {[%emt 0:02:40]} Nxd3 {[%emt 0:01:43]} 27. Rxd3 {[%emt 0:00:10]} Rad8 {[%emt 0:02:11]} 28. Rbd1 {[%emt 0:02:10]} c5 {[%emt 0:06:43]} 29. Bf1 {[%emt 0:02:05]} Qc6 {[%emt 0:02:20]} 30. Qe2 {[%emt 0:01:40]} f5 {[%emt 0:04:55]} 31. Bg2 {[%emt 0:00:25]} fxe4 {[%emt 0:01:01]} 32. Bxe4 {[%emt 0:00:26]} Qd7 {[%emt 0:02:54]} 33. Qc2 {[%emt 0:02:28]} Rf8 {[%emt 0:02:16]} 34. R3d2 {[%emt 0:01:48]} Qg4 {[%emt 0:04:49]} 35. Bg2 {[%emt 0:00:43]} Qf5 {[%emt 0:01:02]} 36. Qxf5 {[%emt 0:00:27]} Rxf5 {[%emt 0:00:12]} 37. h3 {[%emt 0:00:31]} Rf2 {[%emt 0:01:23] normal} 0-1

[Event "DVM U14 2019"]
[Site "Magedburg"]
[Date "2019.12.29"]
[Round "5"]
[White "Rohde, Niclas"]
[Black "Abed, Karim"]
[Result "0-1"]
[ECO "B23"]
[WhiteElo "1609"]
[BlackElo "1513"]
[Annotator "NA"]
[PlyCount "132"]
[EventDate "2019.12.27"]
[EventType "team-tourn"]
[EventRounds "7"]
[EventCountry "GER"]
[SourceTitle "playchess.com"]
[Source "ChessBase"]
[SourceQuality "1"]
[WhiteTeam "1. SC Anhalt"]
[BlackTeam "SV Königsjäger Süd-West"]
[WhiteTeamCountry "GER"]
[BlackTeamCountry "GER"]
[TimeControl "40/5400+30:1800+30"]

1. e4 {[%emt 0:00:00]} c5 {[%emt 0:00:00]} 2. Nc3 {[%emt 0:00:00]} Nc6 {[%emt 0:00:00]} 3. f4 {[%emt 0:00:17]} d6 {[%emt 0:01:01]} 4. Bc4 {[%emt 0:01:26]} g6 {[%emt 0:00:49]} 5. Nf3 {[%emt 0:00:32]} Bg7 {[%emt 0:00:13]} 6. O-O {[%emt 0:00:47]} Nf6 {[%emt 0:00:33]} 7. d3 {[%emt 0:01:36]} O-O {[%emt 0:01:16]} 8. Qe1 {[%emt 0:04:38]} Qc7 {[%emt 0:02:34]} 9. Nh4 {[%emt 0:16:08]} Nd4 {[%emt 0:01:50]} 10. Bb3 {[%emt 0:10:54]} b5 {[%emt 0:04:05]} 11. Ne2 {[%emt 0:07:39]} Nxb3 {[%emt 0:01:22]} 12. axb3 {[%emt 0:00:34]} c4 {[%emt 0:00:20]} 13. bxc4 {[%emt 0:07:37]} bxc4 {[%emt 0:00:05]} 14. Nc3 {[%emt 0:00:52]} cxd3 {[%emt 0:04:43]} 15. cxd3 {[%emt 0:00:13]} Qb6+ {[%emt 0:00:37]} 16. Kh1 {[%emt 0:02:16]} Qd4 {[%emt 0:02:35]} 17. Qe2 {[%emt 0:02:06]} Bg4 {[%emt 0:02:35]} 18. Nf3 {[%emt 0:03:38]} Bxf3 {[%emt 0:05:58]} 19. Rxf3 {[%emt 0:01:47]} a5 {[%emt 0:02:43]} 20. Ra4 {[%emt 0:12:54]} Qb6 {[%emt 0:00:48]} 21. Be3 {[%emt 0:02:04]} Qb7 {[%emt 0:01:15]} 22. Rf2 {[%emt 0:01:27]} Nd7 {[%emt 0:02:55]} 23. d4 {[%emt 0:04:49]} Nb6 {[%emt 0:03:27]} 24. Ra2 {[%emt 0:05:50]} Rfc8 {[%emt 0:00:52]} 25. Qb5 {[%emt 0:02:44]} Qa6 {[%emt 0:01:53]} 26. Qxa6 {[%emt 0:01:06]} Rxa6 {[%emt 0:03:42]} 27. Rf3 {[%emt 0:02:11]} Nc4 {[%emt 0:00:27]} 28. Bg1 {[%emt 0:00:33]} Rb8 {[%emt 0:02:42]} 29. Na4 {[%emt 0:02:08]} Nd2 {[%emt 0:01:20]} 30. Re3 {[%emt 0:03:08]} Bxd4 {[%emt 0:00:09]} 31. Re2 {[%emt 0:00:17]} Bxg1 {[%emt 0:00:07]} 32. Kxg1 {[%emt 0:00:24]} Nb3 {[%emt 0:00:55]} 33. Rc2 {[%emt 0:00:27]} Ra7 {[%emt 0:00:40]} 34. Nc3 {[%emt 0:00:49]} Nc5 {[%emt 0:02:07]} 35. Re2 {[%emt 0:00:49]} Nd3 {[%emt 0:00:28]} 36. Rd2 {[%emt 0:02:25]} Nxf4 {[%emt 0:00:07]} 37. g3 {[%emt 0:00:28]} Ne6 {[%emt 0:01:43]} 38. Rd5 {[%emt 0:00:26]} Nc7 {[%emt 0:02:27]} 39. Rdxa5 {[%emt 0:00:34]} Rxa5 {[%emt 0:00:50]} 40. Rxa5 {[%emt 0:00:03]} Rxb2 {[%emt 0:00:07]} 41. Ra7 {[%emt 0:30:27]} Ne6 {[%emt 0:33:30]} 42. Rxe7 {[%emt 0:00:00]} Rb3 {[%emt 0:00:00]} 43. Nd5 {[%emt 0:00:00]} Rb1+ {[%emt 0:00:00]} 44. Kg2 {[%emt 0:00:00]} Rb2+ {[%emt 0:00:00]} 45. Kg1 {[%emt 0:00:00]} Re2 {[%emt 0:00:00]} 46. Rd7 {[%emt 0:00:00]} Kg7 {[%emt 0:00:00]} 47. Rxd6 {[%emt 0:00:00]} Rxe4 {[%emt 0:00:00]} 48. Rd7 {[%emt 0:00:00]} Re2 {[%emt 0:00:00]} 49. Nc3 {[%emt 0:00:00]} Rc2 {[%emt 0:00:00]} 50. Ne4 {[%emt 0:00:00]} Rc7 {[%emt 0:00:00]} 51. Rxc7 {[%emt 0:00:00]} Nxc7 {[%emt 0:00:00]} 52. Kf2 {[%emt 0:00:00]} f5 {[%emt 0:00:00]} 53. Nc3 {[%emt 0:00:00]} g5 {[%emt 0:00:00]} 54. h3 {[%emt 0:00:00]} Kf6 {[%emt 0:00:00]} 55. Kf3 {[%emt 0:00:00]} Ke5 {[%emt 0:00:00]} 56. Ne2 {[%emt 0:00:19]} Nb5 {[%emt 0:00:00]} 57. Ng1 {[%emt 0:02:55]} Nd4+ {[%emt 0:00:00]} 58. Ke3 {[%emt 0:01:29]} f4+ {[%emt 0:00:00]} 59. gxf4+ {[%emt 0:01:03]} gxf4+ {[%emt 0:00:00]} 60. Kf2 {[%emt 0:00:20]} Ke4 {[%emt 0:00:00]} 61. h4 {[%emt 0:01:46]} h6 {[%emt 0:00:00]} 62. Ne2 {[%emt 0:03:02]} Nxe2 {[%emt 0:00:00]} 63. Kxe2 {[%emt 0:00:06]} f3+ {[%emt 0:00:00]} 64. Kf2 {[%emt 0:00:06]} Kf4 {[%emt 0:00:00]} 65. h5 {[%emt 0:00:19]} Kg4 {[%emt 0:00:00]} 66. Ke3 {[%emt 0:01:44]} Kg3 {[%emt 0:00:00] normal} 0-1